bitfinex-derivatives/quotes_BTCF0:USTF0_20241217
["timestamp","ask_amount","ask_price","bid_price","bid_amount"]
[1734443080504,0.407348,107430.0,107420.0,0.05602948]
[1734443081108,0.407348,107430.0,107420.0,0.00947848]
[1734443081521,0.49045142,107430.0,107420.0,0.00947848]
[1734443081819,0.49045142,107430.0,107420.0,8.405e-05]
[1734443082115,0.59645142,107430.0,107420.0,8.405e-05]
[1734443082911,0.046553,107420.0,107410.0,0.10888245]
[1734443083217,0.407353,107420.0,107410.0,0.05599551]
[1734443083524,0.407353,107420.0,107410.0,0.00943851]
[1734443083819,0.046557,107410.0,107400.0,0.256958]
[1734443084008,0.0466505,107410.0,107400.0,0.25704038]
[1734443084712,0.4074505,107410.0,107400.0,0.25704038]
[1734443087709,0.4074505,107410.0,107400.0,0.26642171]
[1734443090913,0.0466505,107410.0,107400.0,0.26642171]
[1734443091622,0.4074505,107410.0,107400.0,0.26642171]
[1734443091808,0.49055392,107410.0,107400.0,0.21986371]
[1734443092015,0.49055392,107410.0,107400.0,0.10946371]
[1734443092221,0.59455392,107410.0,107400.0,0.10946371]
[1734443092422,0.59455392,107410.0,107400.0,0.10008238]
[1734443100525,0.59455392,107410.0,107400.0,0.14664338]
[1734443100712,0.59455392,107410.0,107400.0,0.10008238]
[1734443102723,0.59455392,107410.0,107400.0,0.07236445]
[1734443103631,0.67765734,107410.0,107400.0,0.07236445]
[1734443103832,0.59455392,107410.0,107400.0,0.07236445]
[1734443104323,0.67765734,107410.0,107400.0,0.07236445]
[1734443104515,0.97765734,107410.0,107400.0,0.07236445]
[1734443105919,0.04657,107380.0,107370.0,0.161174]
[1734443106120,0.49047342,107380.0,107370.0,0.161174]
[1734443106918,0.49047342,107380.0,107370.0,0.16128248]
[1734443107123,0.49047342,107380.0,107370.0,0.17072489]
[1734443107331,0.49047342,107380.0,107370.0,0.12415089]
[1734443109037,0.3608,107380.0,107370.0,0.25382831]
[1734443109231,0.3608,107380.0,107370.0,0.35942831]
[1734443109433,0.60127042,107390.0,107380.0,0.04657]
[1734443110230,0.60127042,107390.0,107370.0,0.12415089]
[1734443110537,0.40737,107380.0,107370.0,0.17072289]
[1734443110725,0.49047342,107380.0,107370.0,0.17072289]
[1734443110923,0.40737,107380.0,107370.0,0.17072289]
[1734443111935,0.49047342,107380.0,107370.0,0.00010848]
[1734443112126,0.71247342,107380.0,107370.0,0.00010848]
[1734443114425,0.79557684,107380.0,107370.0,0.00010848]
[1734443115125,1.09557684,107380.0,107370.0,0.00010848]
[1734443115326,1.09557684,107380.0,107340.0,0.375284]
[1734443115626,0.49048642,107350.0,107340.0,0.375284]
[1734443115832,0.49048642,107350.0,107340.0,0.158584]
[1734443116027,0.49048642,107350.0,107340.0,0.112]
[1734443116227,0.59818642,107350.0,107340.0,0.112]
[1734443116426,0.59818642,107350.0,107340.0,0.00010778]
[1734443116837,0.59828235,107350.0,107340.0,0.00010778]
[1734443125639,0.68138577,107350.0,107340.0,0.00010778]
[1734443125836,0.59828235,107350.0,107340.0,0.00010778]
[1734443127435,0.68138577,107350.0,107340.0,0.00010778]
[1734443128140,0.69961637,107350.0,107340.0,10.00010778]
[1734443129038,0.99961637,107350.0,107340.0,9.61081304]
[1734443129343,0.99961637,107350.0,107340.0,8.6939024]
[1734443130435,0.99961637,107350.0,107340.0,8.6576894]
[1734443131946,0.99961637,107350.0,107340.0,8.44336418]
[1734443132149,0.69961637,107350.0,107340.0,8.44336418]
[1734443132339,0.99961637,107350.0,107340.0,8.44336418]
[1734443132539,0.99961637,107350.0,107340.0,8.37315966]
[1734443133047,0.99961637,107350.0,107340.0,8.14024472]
[1734443133447,0.99961637,107350.0,107340.0,7.82016005]
[1734443134141,1.08318047,107350.0,107340.0,7.78516005]
[1734443135052,1.08318047,107350.0,107340.0,7.57083483]
[1734443135349,1.08318047,107350.0,107340.0,7.30189589]
[1734443135758,1.44398047,107350.0,107340.0,5.86518352]
[1734443135952,1.47183518,107350.0,107340.0,5.38169609]
[1734443136246,1.47183518,107350.0,107340.0,2.55649289]
[1734443136247,1.57481925,107350.0,107340.0,2.55649289]
[1734443136453,1.60267395,107350.0,107340.0,0.72946415]
[1734443136647,0.0466,107310.0,107300.0,0.10007705]
[1734443136847,0.83471381,107310.0,107300.0,0.10007705]
[1734443137150,0.94221381,107310.0,107300.0,0.10007705]
[1734443140354,0.046609,107300.0,107280.0,0.1112]
[1734443140543,0.44390342,107290.0,107280.0,0.1112]
[1734443140747,0.08310342,107290.0,107280.0,0.157813]
[1734443141148,0.90506794,107310.0,107290.0,0.046609]
[1734443141347,0.95166994,107310.0,107290.0,0.046609]
[1734443141656,0.08310342,107300.0,107290.0,0.046609]
[1734443141849,0.08310342,107300.0,107290.0,0.153309]
[1734443142042,0.44390342,107300.0,107290.0,0.153309]
[1734443142238,0.49050842,107300.0,107290.0,0.1067]
[1734443142445,0.60150842,107300.0,107280.0,0.265111]
[1734443142659,0.08310342,107290.0,107280.0,0.371811]
[1734443142963,0.08310342,107300.0,107290.0,0.046609]
[1734443143548,0.86856552,107310.0,107300.0,0.046605]
[1734443143549,9.039e-05,107310.0,107300.0,0.046605]
[1734443143752,9.039e-05,107310.0,107300.0,0.626005]
[1734443143944,0.08319381,107310.0,107300.0,0.730205]
[1734443144148,0.57369723,107310.0,107300.0,0.2186]
[1734443145055,0.49059381,107310.0,107300.0,0.2186]
[1734443145943,0.12979381,107310.0,107300.0,0.2186]
[1734443146560,9.039e-05,107310.0,107300.0,0.626005]
[1734443146850,9.039e-05,107310.0,107300.0,0.265205]
[1734443147054,0.12979381,107310.0,107300.0,0.371905]
[1734443147251,0.12979381,107310.0,107300.0,0.3253]
[1734443147650,0.49059381,107310.0,107300.0,2.3253]
[1734443148956,0.50955144,107310.0,107300.0,2.3253]
[1734443149352,0.14875144,107310.0,107300.0,2.3253]
[1734443152252,0.14875144,107310.0,107300.0,2.371905]
[1734443153463,0.01904802,107310.0,107300.0,2.732705]
[1734443153849,0.01904802,107310.0,107300.0,3.00927627]
[1734443154561,0.06564802,107310.0,107300.0,3.00927627]
[1734443154865,0.06564802,107310.0,107300.0,2.64847627]
[1734443155957,0.06564802,107310.0,107300.0,2.60187127]
[1734443156854,0.14875144,107310.0,107300.0,2.60187127]
[1734443159349,0.14875144,107310.0,107300.0,2.64847627]
[1734443159350,0.06564802,107310.0,107300.0,2.64847627]
[1734443159560,0.06564802,107310.0,107300.0,2.371905]
[1734443160151,0.06564802,107310.0,107300.0,2.3253]
[1734443160352,0.06564802,107310.0,107300.0,2.60294985]
[1734443160851,0.06564802,107310.0,107300.0,2.65706083]
[1734443161558,0.42644802,107310.0,107300.0,2.65706083]
[1734443161864,0.50955144,107310.0,107300.0,2.55036083]
[1734443162263,0.50955144,107310.0,107300.0,2.33176083]
[1734443162461,0.61575144,107310.0,107300.0,2.27786236]
[1734443162659,0.69885486,107310.0,107300.0,2.27786236]
[1734443162865,0.7821251,107310.0,107300.0,2.27786236]
[1734443163064,0.69902168,107310.0,107300.0,2.27786236]
[1734443163650,0.7821251,107310.0,107300.0,2.27786236]
[1734443165362,0.7821251,107310.0,107300.0,2.25845787]
[1734443165760,0.69902168,107310.0,107300.0,2.25845787]
[1734443165961,0.61575144,107310.0,107300.0,2.25845787]
[1734443166273,0.53264802,107310.0,107300.0,2.35896134]
[1734443166468,0.42644802,107310.0,107300.0,2.46946134]
[1734443166765,0.06564802,107310.0,107300.0,2.46946134]
[1734443166968,0.01904802,107310.0,107300.0,2.13770051]
[1734443167167,0.01904802,107310.0,107300.0,2.18376228]
[1734443167472,9.039e-05,107310.0,107300.0,2.54456228]
[1734443167668,9.039e-05,107310.0,107300.0,2.93151856]
[1734443168957,9.039e-05,107310.0,107300.0,3.18010356]
[1734443169161,0.52614344,107330.0,107320.0,0.046596]
[1734443169371,0.16534344,107330.0,107320.0,0.046596]
[1734443169559,0.11875044,107330.0,107320.0,0.046596]
[1734443169763,0.47393242,107340.0,107320.0,0.152796]
[1734443169965,0.47393242,107340.0,107330.0,0.3329289]
[1734443170180,0.39092979,107340.0,107330.0,0.3329289]
[1734443170375,0.34434079,107340.0,107330.0,0.3795209]
[1734443170580,0.34434079,107340.0,107330.0,0.60279542]
[1734443170869,0.00010079,107340.0,107330.0,0.99135566]
[1734443171376,1.05337942,107370.0,107340.0,0.08310342]
[1734443171559,1.05337942,107370.0,107350.0,0.43937662]
[1734443171560,0.046579,107360.0,107350.0,0.43937662]
[1734443171761,0.50944669,107360.0,107350.0,0.33237662]
[1734443172162,0.80944669,107360.0,107350.0,0.33237662]
[1734443172368,0.046587,107340.0,107330.0,0.50086024]
[1734443172671,0.046592,107330.0,107320.0,0.8304153]
[1734443172866,0.12969542,107330.0,107310.0,1.3453743]
[1734443173066,0.08310342,107320.0,107310.0,0.98320711]
[1734443173271,0.08310342,107320.0,107310.0,0.90215205]
[1734443173574,0.12969942,107320.0,107310.0,0.49475305]
[1734443173876,0.12969942,107320.0,107310.0,0.107]
[1734443174868,0.12969942,107320.0,107310.0,0.49475305]
[1734443175076,0.12969942,107320.0,107310.0,0.107]
[1734443177370,0.12969942,107320.0,107310.0,0.4678]
[1734443178971,0.08310342,107320.0,107310.0,0.5144]
[1734443179381,0.08310342,107320.0,107310.0,0.1536]
[1734443180878,0.08310342,107320.0,107310.0,0.54135305]
[1734443181073,0.08310342,107320.0,107310.0,0.1536]
[1734443181377,0.08310342,107320.0,107310.0,0.5144]
[1734443181591,0.08310342,107320.0,107310.0,0.1536]
[1734443181896,0.34416,107330.0,107310.0,0.4678]
[1734443182063,0.24288842,107350.0,107330.0,0.046592]
[1734443182377,0.08310342,107340.0,107330.0,0.407392]
[1734443182768,0.12259949,107350.0,107340.0,0.046587]
[1734443183079,0.00939949,107350.0,107340.0,0.151687]
[1734443183581,0.47395635,107360.0,107340.0,0.151687]
[1734443183787,0.08310342,107350.0,107340.0,0.90024005]
[1734443184078,0.47395635,107360.0,107340.0,0.4659]
[1734443184270,0.34427293,107360.0,107350.0,0.407383]
[1734443184470,0.34427293,107360.0,107350.0,0.79513605]
[1734443184671,0.34427293,107360.0,107350.0,0.43433605]
[1734443185064,0.34427293,107360.0,107350.0,0.046583]
[1734443185266,0.36250274,107360.0,107350.0,0.046583]
[1734443185672,0.44560616,107360.0,107350.0,0.046583]
[1734443187283,0.44560616,107360.0,107340.0,0.34724635]
[1734443187485,0.44560616,107360.0,107350.0,0.046583]
[1734443188579,0.44560616,107360.0,107350.0,0.407383]
[1734443189080,0.44560616,107360.0,107350.0,0.046583]
[1734443189273,0.44560616,107360.0,107350.0,0.407383]
[1734443190282,0.36250274,107360.0,107350.0,0.046583]
[1734443190479,0.01834274,107360.0,107350.0,0.158683]
[1734443190885,0.01834274,107360.0,107350.0,0.519483]
[1734443191374,0.00011293,107360.0,107350.0,0.519483]
[1734443191686,0.00011293,107360.0,107350.0,0.5195564]
[1734443192378,0.00011293,107360.0,107350.0,0.85056182]
[1734443193370,0.00011293,107360.0,107350.0,0.48976182]
[1734443193572,0.00011293,107360.0,107350.0,0.85056182]
[1734443193970,0.00011293,107360.0,107350.0,0.5195564]
[1734443194770,0.00011293,107360.0,107350.0,0.85058548]
[1734443195375,0.00011293,107360.0,107350.0,0.85070764]
[1734443197370,0.12979535,107360.0,107350.0,0.73860764]
[1734443198182,0.04669193,107360.0,107350.0,0.73860764]
[1734443200375,0.00011293,107360.0,107350.0,0.73860764]
[1734443201983,0.00011293,107360.0,107350.0,0.92581106]
[1734443202187,0.00011293,107360.0,107350.0,0.59465982]
[1734443202490,0.00011293,107360.0,107350.0,0.92593644]
[1734443202687,0.00011293,107360.0,107350.0,0.84283302]
[1734443202988,0.00011293,107360.0,107350.0,0.5115564]
[1734443203579,0.00011293,107360.0,107350.0,0.98241287]
[1734443203895,0.00011293,107360.0,107350.0,0.59465982]
[1734443204389,0.00011293,107360.0,107350.0,0.98241287]
[1734443206789,0.00011293,107360.0,107350.0,0.89930945]
[1734443207692,0.00011293,107360.0,107350.0,0.98241287]
[1734443207896,0.00011293,107360.0,107350.0,1.03651488]
[1734443208075,0.00011293,107360.0,107350.0,1.533543]
[1734443208281,0.257672,107380.0,107370.0,0.046574]
[1734443208282,0.152572,107380.0,107370.0,0.046574]
[1734443208589,0.152572,107380.0,107370.0,0.407374]
[1734443208786,0.106,107380.0,107370.0,0.407374]
[1734443209090,0.149868,107390.0,107380.0,0.04657]
[1734443209289,0.1499401,107390.0,107380.0,0.40737]
[1734443209692,0.0466401,107390.0,107380.0,0.40737]
[1734443209888,7.21e-05,107390.0,107380.0,0.40737]
[1734443210491,7.21e-05,107390.0,107380.0,0.79418574]
[1734443210887,7.21e-05,107390.0,107380.0,0.87728916]
[1734443211786,7.21e-05,107390.0,107380.0,0.79418574]
[1734443212000,7.21e-05,107390.0,107380.0,0.40737]
[1734443212187,7.21e-05,107390.0,107380.0,0.79418574]
[1734443212386,7.21e-05,107390.0,107380.0,0.40737]
[1734443215197,7.21e-05,107390.0,107380.0,0.49047342]
[1734443215705,7.21e-05,107390.0,107380.0,0.87728916]
[1734443216300,7.21e-05,107390.0,107380.0,0.49047342]
[1734443216801,7.21e-05,107390.0,107380.0,0.87728916]
[1734443217405,7.21e-05,107390.0,107380.0,0.49047342]
[1734443217712,7.21e-05,107390.0,107380.0,0.87728916]
[1734443218297,7.21e-05,107390.0,107380.0,0.49047342]
[1734443219403,7.21e-05,107390.0,107380.0,0.40737]
[1734443219604,0.0466381,107390.0,107380.0,0.40737]
[1734443219800,7.21e-05,107390.0,107380.0,0.40737]
[1734443220200,0.12974152,107390.0,107380.0,0.40737]
[1734443220599,0.35204152,107390.0,107380.0,0.40737]
[1734443221401,0.30547552,107390.0,107380.0,0.40737]
[1734443222303,0.71284152,107390.0,107370.0,0.046573]
[1734443222514,0.12967342,107380.0,107370.0,0.046573]
[1734443224304,0.49047342,107380.0,107360.0,0.3608]
[1734443224505,0.19500342,107370.0,107360.0,0.407377]
[1734443225002,0.19500342,107370.0,107360.0,0.046577]
[1734443226005,0.60237742,107370.0,107360.0,0.046577]
[1734443226206,0.24157742,107370.0,107360.0,0.046577]
[1734443227507,0.60237742,107370.0,107360.0,0.046577]
[1734443227698,0.71497742,107370.0,107360.0,0.046577]
[1734443228095,0.66840342,107370.0,107360.0,0.046577]
[1734443228613,0.30760342,107370.0,107360.0,0.046577]
[1734443229902,0.66840342,107370.0,107360.0,0.046577]
[1734443230706,0.30760342,107370.0,107360.0,0.046577]
[1734443231301,0.2245,107370.0,107360.0,0.407377]
[1734443231811,0.1119,107370.0,107360.0,0.407377]
[1734443232402,0.1119,107370.0,107360.0,0.046577]
[1734443232915,0.1119,107370.0,107360.0,0.407377]
[1734443233105,0.1119,107370.0,107360.0,0.046577]
[1734443233504,0.1119,107370.0,107360.0,0.407377]
[1734443233908,0.1119,107370.0,107360.0,0.513477]
[1734443234403,0.12401667,107380.0,107370.0,0.046574]
[1734443235211,0.20712009,107380.0,107370.0,0.046574]
[1734443236007,0.12401667,107380.0,107370.0,0.046574]
[1734443236207,0.12401667,107380.0,107370.0,0.43338974]
[1734443237215,0.12401667,107380.0,107370.0,0.79418974]
[1734443237420,0.1052,107380.0,107370.0,0.79418974]
[1734443237609,0.22848528,107390.0,107370.0,0.87729316]
[1734443237909,0.22848528,107390.0,107380.0,0.12967342]
[1734443237910,0.2189721,107390.0,107380.0,0.12967342]
[1734443238112,0.2189721,107390.0,107380.0,0.04657]
[1734443238708,0.30207552,107390.0,107380.0,0.04657]
[1734443239110,0.34864152,107390.0,107380.0,0.04657]
[1734443239303,0.34864152,107390.0,107370.0,0.43338774]
[1734443239517,0.08310342,107380.0,107370.0,0.046572]
[1734443239816,0.2189721,107390.0,107380.0,0.04657]
[1734443240214,0.2189721,107390.0,107380.0,0.40737]
[1734443240811,0.23774435,107390.0,107380.0,0.40737]
[1734443241107,0.23774435,107390.0,107380.0,0.04657]
[1734443242719,0.2189721,107390.0,107380.0,0.04657]
[1734443243223,0.70944152,107390.0,107360.0,0.4669]
[1734443243523,0.08310342,107370.0,107360.0,0.43339374]
[1734443243912,0.60067642,107380.0,107360.0,0.79419374]
[1734443244111,0.60067642,107380.0,107360.0,0.43339374]
[1734443244612,0.60067642,107380.0,107360.0,0.046578]
[1734443245610,0.08310342,107370.0,107360.0,0.046578]
[1734443248829,0.08310342,107370.0,107360.0,0.43339374]
[1734443249717,0.08310342,107370.0,107360.0,0.38681574]
[1734443249718,0.44390342,107370.0,107360.0,0.38681574]
[1734443249924,0.59417742,107370.0,107360.0,0.38681574]
[1734443250817,0.59417742,107370.0,107350.0,1.2361242]
[1734443251124,0.08310342,107360.0,107350.0,1.2361242]
[1734443252133,0.08310342,107360.0,107350.0,0.84930846]
[1734443252819,0.59417742,107370.0,107350.0,1.23694752]
[1734443253017,0.59417742,107370.0,107360.0,0.38763906]
[1734443253216,0.60350455,107370.0,107360.0,0.38763906]
[1734443253412,0.65008355,107370.0,107350.0,1.23694752]
[1734443253619,0.18950342,107360.0,107350.0,1.34633658]
[1734443254018,0.18950342,107360.0,107350.0,0.84930846]
[1734443254615,0.18950342,107360.0,107350.0,0.48850846]
[1734443254820,0.23608242,107360.0,107350.0,0.82959068]
[1734443255018,0.59688242,107360.0,107350.0,7.34e-05]
[1734443255215,0.71058242,107360.0,107350.0,0.33226144]
[1734443255521,0.046587,107350.0,107340.0,0.38766919]
[1734443255828,0.60089042,107350.0,107340.0,0.57227483]
[1734443256225,0.60089042,107350.0,107330.0,0.085489]
[1734443256427,0.19450342,107340.0,107330.0,0.085489]
[1734443256627,0.29960342,107340.0,107330.0,0.085489]
[1734443258228,0.2165,107340.0,107330.0,0.085489]
[1734443258528,0.2165,107340.0,107330.0,0.47315819]
[1734443259026,0.2165,107340.0,107330.0,0.83395819]
[1734443261228,0.2165,107340.0,107330.0,0.446289]
[1734443261636,0.4712,107350.0,107340.0,0.046587]
[1734443262028,0.48045531,107350.0,107340.0,0.046587]
[1734443263238,0.56355873,107350.0,107340.0,0.046587]
[1734443264028,0.20275873,107350.0,107340.0,0.046587]
[1734443265136,0.20275873,107350.0,107330.0,0.446289]
[1734443265137,0.24934273,107350.0,107330.0,0.446289]
[1734443265331,0.19150342,107340.0,107330.0,0.085489]
[1734443267430,0.19150342,107340.0,107330.0,0.446289]
[1734443268141,0.19150342,107340.0,107330.0,0.83395819]
[1734443268442,0.19150342,107340.0,107330.0,0.446289]
[1734443269744,0.19150342,107340.0,107330.0,0.085489]
[1734443271726,0.59889042,107340.0,107330.0,0.0389]
[1734443274242,0.73169042,107340.0,107330.0,0.0389]
[1734443275344,0.81487453,107340.0,107330.0,0.37093766]
[1734443275542,0.81487453,107340.0,107330.0,0.34249984]
[1734443276243,0.81487453,107340.0,107330.0,0.33203766]
[1734443277245,0.81487453,107340.0,107330.0,0.31152626]
[1734443279352,0.86146653,107340.0,107330.0,0.0105]
[1734443283448,0.86146653,107340.0,107330.0,0.58686425]
[1734443283745,1.20558653,107340.0,107330.0,0.0105]
[1734443284150,1.20558653,107340.0,107330.0,0.19919506]
[1734443284454,1.20558653,107340.0,107330.0,0.0105]
[1734443285436,0.046592,107330.0,107320.0,0.57646019]
[1734443285652,0.62929542,107330.0,107320.0,0.57646019]
[1734443287641,0.4996,107330.0,107320.0,0.62305619]
[1734443287951,0.0006407,107340.0,107330.0,0.046592]
[1734443288145,8.069e-05,107340.0,107330.0,0.180692]
[1734443288353,8.069e-05,107340.0,107330.0,0.75705625]
[1734443288853,8.069e-05,107340.0,107330.0,1.19891131]
[1734443290151,8.069e-05,107340.0,107330.0,1.01021625]
[1734443290351,8.069e-05,107340.0,107330.0,1.20315377]
[1734443290852,8.069e-05,107340.0,107330.0,1.17628458]
[1734443292943,8.069e-05,107340.0,107330.0,1.17493038]
[1734443294645,8.069e-05,107340.0,107330.0,1.31583038]
[1734443298255,8.069e-05,107340.0,107330.0,1.8128585]
[1734443299156,8.069e-05,107340.0,107330.0,1.37100344]
[1734443299464,8.069e-05,107340.0,107330.0,1.81380738]
[1734443300555,8.069e-05,107340.0,107330.0,1.37100344]
[1734443300952,8.069e-05,107340.0,107330.0,1.81371582]
[1734443301349,8.069e-05,107340.0,107330.0,1.3166877]
[1734443303350,8.069e-05,107340.0,107330.0,1.17013126]
[1734443303555,8.069e-05,107340.0,107330.0,1.21672326]
[1734443304462,8.069e-05,107340.0,107330.0,1.16132775]
[1734443306256,8.069e-05,107340.0,107330.0,0.96974443]
[1734443308764,8.069e-05,107340.0,107330.0,0.22162756]
[1734443309554,0.08318411,107340.0,107330.0,0.548292]
[1734443310159,8.069e-05,107340.0,107330.0,0.187492]
[1734443310354,8.069e-05,107340.0,107330.0,0.548292]
[1734443311260,8.069e-05,107340.0,107330.0,0.73841928]
[1734443311469,8.069e-05,107340.0,107330.0,1.12573615]
[1734443311769,8.069e-05,107340.0,107330.0,0.76493615]
[1734443312268,0.08318411,107340.0,107330.0,0.62403615]
[1734443313155,0.08318411,107340.0,107330.0,0.43390887]
[1734443313361,0.08318411,107340.0,107330.0,0.62403615]
[1734443313756,0.08318411,107340.0,107330.0,0.43390887]
[1734443314061,0.08318411,107340.0,107330.0,0.62403615]
[1734443314262,0.08318411,107340.0,107330.0,0.43390887]
[1734443314465,0.08318411,107340.0,107330.0,0.62403615]
[1734443315967,0.10945249,107340.0,107330.0,0.62403615]
[1734443317155,0.05476659,107340.0,107330.0,0.62403615]
[1734443317359,0.05476659,107340.0,107330.0,0.67943166]
[1734443318459,0.05476659,107340.0,107330.0,1.04023166]
[1734443318673,0.05476659,107340.0,107330.0,0.67943166]
[1734443318971,0.05476659,107340.0,107330.0,1.04023166]
[1734443319368,0.05476659,107340.0,107330.0,0.67943166]
[1734443319762,0.05476659,107340.0,107330.0,1.04023166]
[1734443320967,0.28735531,107350.0,107340.0,0.046587]
[1734443320968,0.01907537,107350.0,107340.0,0.046587]
[1734443321275,0.4154859,107360.0,107350.0,0.046583]
[1734443321576,0.4154859,107360.0,107350.0,1.06828053]
[1734443321778,0.0546859,107360.0,107350.0,1.06828053]
[1734443322069,0.08339436,107360.0,107350.0,0.68021441]
[1734443322459,0.08339436,107360.0,107350.0,1.06818555]
[1734443322672,0.09269866,107360.0,107350.0,0.68021441]
[1734443322868,0.09269866,107360.0,107350.0,1.06817508]
[1734443323071,0.45349866,107360.0,107350.0,1.06817508]
[1734443323462,0.45349866,107360.0,107350.0,0.62467095]
[1734443323866,0.45349866,107360.0,107350.0,0.23671028]
[1734443324476,0.09269866,107360.0,107350.0,0.62467095]
[1734443325667,0.1110746,107360.0,107350.0,0.23671028]
[1734443325970,0.4718746,107360.0,107350.0,0.23671028]
[1734443326167,0.2533746,107360.0,107350.0,0.23671028]
[1734443327772,0.2533746,107360.0,107350.0,0.62467095]
[1734443330569,0.2533746,107360.0,107350.0,0.23671028]
[1734443331866,0.2533746,107360.0,107350.0,0.047113]
[1734443332072,0.2533746,107360.0,107350.0,0.23724028]
[1734443332768,0.2533746,107360.0,107350.0,0.62520095]
[1734443333481,0.2533746,107360.0,107350.0,0.23724028]
[1734443333775,0.2533746,107360.0,107350.0,0.62520095]
[1734443333976,0.2533746,107360.0,107350.0,0.23724028]
[1734443334378,0.6141746,107360.0,107350.0,0.19065728]
[1734443334579,0.6607536,107360.0,107350.0,0.19065728]
[1734443334767,0.6607536,107360.0,107350.0,0.57861795]
[1734443335378,0.6607536,107360.0,107350.0,0.00053]
[1734443335680,0.2533746,107360.0,107350.0,0.047113]
[1734443336876,0.6607536,107360.0,107350.0,0.00053]
[1734443337076,0.9607536,107360.0,107330.0,1.12027695]
[1734443337275,0.08329517,107340.0,107330.0,1.45009109]
[1734443337472,0.08329517,107340.0,107330.0,1.67261495]
[1734443337794,0.08329517,107340.0,107330.0,1.17558683]
[1734443338482,0.08329517,107340.0,107330.0,1.56349919]
[1734443339784,0.2874,107350.0,107340.0,0.046587]
[1734443340080,0.1451,107350.0,107340.0,0.62462664]
[1734443340278,0.1451,107350.0,107340.0,0.98542664]
[1734443340782,0.2533746,107360.0,107350.0,0.046583]
[1734443340980,0.2533746,107360.0,107350.0,0.6244962]
[1734443341182,0.6141746,107360.0,107350.0,0.6244962]
[1734443341486,0.6607536,107360.0,107350.0,0.23671028]
[1734443341681,0.6607536,107360.0,107350.0,0.046583]
[1734443341885,0.6141746,107360.0,107350.0,0.046583]
[1734443342386,0.2533746,107360.0,107350.0,0.046583]
[1734443343585,0.6141746,107360.0,107350.0,0.046583]
[1734443343886,0.2533746,107360.0,107350.0,0.046583]
[1734443344985,0.6607536,107360.0,107350.0,0.046583]
[1734443346288,0.6607536,107360.0,107330.0,1.19931144]
[1734443346289,0.046583,107350.0,107330.0,1.19931144]
[1734443346475,0.407387,107340.0,107330.0,0.50918189]
[1734443346683,0.542587,107340.0,107330.0,0.93371244]
[1734443347189,0.542587,107340.0,107330.0,0.49044189]
[1734443347787,0.62588217,107340.0,107330.0,0.49044189]
[1734443348178,0.62588217,107340.0,107330.0,0.10265597]
[1734443348378,0.62588217,107340.0,107330.0,0.49044189]
[1734443348586,0.62588217,107340.0,107330.0,0.10265597]
[1734443348983,0.62588217,107340.0,107320.0,0.38788186]
[1734443349191,0.12988717,107330.0,107320.0,0.38788186]
[1734443349384,0.77508717,107330.0,107320.0,0.38788186]
[1734443351391,0.691792,107330.0,107320.0,9.594e-05]
[1734443353787,0.77508717,107330.0,107320.0,9.594e-05]
[1734443354587,0.78447022,107330.0,107320.0,9.594e-05]
[1734443354987,0.78447022,107330.0,107320.0,0.38788186]
[1734443356093,0.65458305,107330.0,107320.0,0.38788186]
[1734443356395,0.65458305,107330.0,107320.0,0.43447786]
[1734443356783,0.29378305,107330.0,107320.0,0.43447786]
[1734443358191,0.37707822,107330.0,107320.0,0.43447786]
[1734443359601,0.42367022,107330.0,107320.0,0.57524928]
[1734443359808,0.78447022,107330.0,107320.0,0.33218519]
[1734443360100,1.12863022,107330.0,107320.0,0.33218519]
[1734443360494,0.046596,107320.0,107310.0,0.33218519]
[1734443360690,0.62389117,107320.0,107310.0,0.33218519]
[1734443371407,0.62389117,107320.0,107300.0,2.05756954]
[1734443371408,0.0466,107310.0,107300.0,2.05756954]
[1734443371598,0.84779034,107310.0,107300.0,2.02021612]
[1734443371804,0.84779034,107310.0,107300.0,1.68803093]
[1734443372604,0.84779034,107310.0,107300.0,1.51549902]
[1734443372996,0.6812,107310.0,107300.0,1.51549902]
[1734443373195,0.84779034,107310.0,107300.0,1.49667122]
[1734443374004,0.76449517,107310.0,107300.0,1.49667122]
[1734443374206,0.77394037,107310.0,107300.0,1.49667122]
[1734443374401,0.85723554,107310.0,107300.0,1.49667122]
[1734443375399,0.77394037,107310.0,107300.0,1.49667122]
[1734443375595,0.85723554,107310.0,107300.0,1.49667122]
[1734443378115,0.77394037,107310.0,107300.0,1.49667122]
[1734443381810,0.77394037,107310.0,107300.0,1.31159987]
[1734443382114,0.63654037,107310.0,107300.0,1.31159987]
[1734443383413,0.71983554,107310.0,107300.0,1.31159987]
[1734443384109,0.66270404,107310.0,107300.0,1.31159987]
[1734443384314,0.60797462,107310.0,107300.0,1.31159987]
[1734443387717,0.47157462,107310.0,107300.0,1.31159987]
[1734443390709,0.42497462,107310.0,107300.0,1.31159987]
[1734443390911,0.3702452,107310.0,107300.0,1.35820487]
[1734443391112,0.0094452,107310.0,107300.0,1.35820487]
[1734443391316,0.61477779,107320.0,107300.0,1.50380487]
[1734443391820,0.05472942,107310.0,107300.0,1.63770487]
[1734443392227,0.01875037,107320.0,107310.0,0.0466]
[1734443392518,0.00010105,107320.0,107310.0,0.60212942]
[1734443394016,0.00010105,107320.0,107310.0,0.6307282]
[1734443397826,0.00010105,107320.0,107310.0,0.5474]
[1734443400728,0.00010105,107320.0,107310.0,0.6307282]
[1734443401033,0.00010105,107320.0,107310.0,0.5474]
[1734443402027,0.00010105,107320.0,107310.0,0.6307282]
[1734443402231,0.00010105,107320.0,107310.0,0.9307282]
[1734443404230,0.00010105,107320.0,107310.0,0.9399493]
[1734443404737,0.00010105,107320.0,107310.0,0.8566211]
[1734443405430,0.00010105,107320.0,107310.0,0.5566211]
[1734443405836,0.00010105,107320.0,107310.0,0.99989165]
[1734443406428,0.00010105,107320.0,107310.0,0.5566211]
[1734443410139,0.00010105,107320.0,107310.0,0.99989165]
[1734443412034,0.08342925,107320.0,107310.0,0.99989165]
[1734443412233,0.08342925,107320.0,107310.0,0.5566211]
[1734443412434,0.00010105,107320.0,107310.0,0.5566211]
[1734443414841,0.00010105,107320.0,107310.0,0.61131244]
[1734443417042,0.00010105,107320.0,107310.0,1.05458299]
[1734443419147,0.00010105,107320.0,107310.0,0.91360901]
[1734443419345,0.00010105,107320.0,107310.0,0.96020901]
[1734443419544,0.00010105,107320.0,107310.0,1.45723713]
[1734443420438,0.00010105,107320.0,107310.0,1.01396658]
[1734443421845,0.00010105,107320.0,107310.0,1.15051943]
[1734443422348,0.00010105,107320.0,107310.0,1.15925476]
[1734443422647,0.00010105,107320.0,107310.0,1.76644372]
[1734443423144,0.00010105,107320.0,107310.0,1.76723302]
[1734443423741,0.00010105,107320.0,107310.0,1.20600007]
[1734443424147,0.00010105,107320.0,107310.0,1.2147354]
[1734443424444,0.00010105,107320.0,107310.0,1.20600007]
[1734443424653,0.00010105,107320.0,107310.0,1.2147354]
[1734443424839,0.00010105,107320.0,107310.0,1.76723302]
[1734443425039,0.00010105,107320.0,107310.0,1.75849769]
[1734443425235,0.05479239,107320.0,107310.0,1.36255176]